fUSD/lending_fUSD_20240119
["ID","MTS","AMOUNT","RATE_DAILY","PERIOD"]
[312153524,1705669913917,-648.21,0.00024109,2]
[312153525,1705669913928,-1272.95,0.00024109,2]
[312153526,1705669913938,-902.19,0.00024109,2]
[312153527,1705669913949,-500.0,0.00024109,2]
[312153528,1705669913959,-500.0,0.00024109,2]
[312153529,1705669913970,-1231.59,0.00024109,2]
[312153530,1705669913981,-648.29,0.00024109,2]
[312153531,1705669913992,-500.0,0.00024109,2]
[312153532,1705669914002,-928.06,0.00024109,2]
[312153533,1705669914012,-500.0,0.00024109,2]
[312153534,1705669914022,-1262.81,0.00024109,2]
[312153535,1705669914033,-608.03,0.00024109,2]
[312153536,1705669914043,-445.30300416,0.00024109,2]
[312153537,1705669914053,-500.0,0.00024109,2]
[312153538,1705669914064,-716.12,0.00024109,2]
[312153539,1705669914075,-563.41,0.00024109,2]
[312153540,1705669914085,-500.0,0.00024109,2]
[312153541,1705669914096,-903.17,0.00024109,2]
[312153542,1705669914107,-696.7,0.00024109,2]
[312153543,1705669914118,-1064.15,0.00024109,2]
[312153544,1705669914128,-575.26,0.00024109,2]
[312153545,1705669914139,-539.33,0.00024109,2]
[312153546,1705669914150,-500.34,0.00024109,2]
[312153547,1705669914160,-542.26,0.00024109,2]
[312153548,1705669914170,-2012.98,0.00024109,2]
[312153549,1705669914180,-856.21,0.00024109,2]
[312153550,1705669914191,-684.1,0.00024109,2]
[312153551,1705669914201,-500.0,0.00024109,2]
[312153552,1705669914212,-814.87,0.00024109,2]
[312153553,1705669914223,-515.06,0.00024109,2]
[312153554,1705669914233,-500.0,0.00024109,2]
[312153555,1705669914244,-500.0,0.00024109,2]
[312153556,1705669914254,-500.0,0.00024109,2]
[312153557,1705669914265,-500.0,0.00024109,2]
[312153558,1705669914275,-718.46,0.00024109,2]
[312153559,1705669914286,-500.0,0.00024109,2]
[312153560,1705669914297,-500.0,0.00024109,2]
[312153561,1705669914308,-1408.02,0.00024109,2]
[312153562,1705669914318,-500.0,0.00024109,2]
[312153563,1705669914328,-500.0,0.00024109,2]
[312153564,1705669914339,-500.0,0.00024109,2]
[312153565,1705669914349,-546.65,0.00024109,2]
[312153566,1705669914359,-841.35,0.00024109,2]
[312153567,1705669914370,-770.59,0.00024109,2]
[312153568,1705669914380,-733.89,0.00024109,2]
[312153569,1705669914390,-926.17,0.00024109,2]
[312153570,1705669914400,-500.0,0.00024109,2]
[312153571,1705669914411,-680.95,0.00024109,2]
[312153572,1705669914421,-769.83,0.00024109,2]
[312153573,1705669914432,-500.0,0.00024109,2]
[312153574,1705669914442,-622.1,0.00024109,2]
[312153575,1705669914453,-500.0,0.00024109,2]
[312153576,1705669914464,-500.0,0.00024109,2]
[312153577,1705669914474,-852.32,0.00024109,2]
[312153578,1705669914484,-623.89,0.00024109,2]
[312153579,1705669914495,-541.18,0.00024109,2]
[312153580,1705669914506,-774.53,0.00024109,2]
[312153581,1705669914516,-910.14,0.00024109,2]
[312153582,1705669914526,-500.0,0.00024109,2]
[312153583,1705669914537,-500.0,0.00024109,2]
[312153584,1705669914547,-500.0,0.00024109,2]
[312153585,1705669914558,-918.52,0.00024109,2]
[312153586,1705669914568,-1225.46,0.00024109,2]
[312153587,1705669914578,-1110.62,0.00024109,2]
[312153588,1705669914588,-506.01440032,0.00024109,2]
[312153589,1705669914598,-722.75,0.00024109,2]
[312153590,1705669914609,-681.27,0.00024109,2]
[312153591,1705669914620,-720.2,0.00024109,2]
[312153592,1705669914630,-1281.21,0.00024109,2]
[312153593,1705669914640,-960.8,0.00024109,2]
[312153594,1705669914650,-1200.27,0.00024109,2]
[312153595,1705669914661,-500.0,0.00024109,2]
[312153596,1705669914671,-996.2,0.00024109,2]
[312153597,1705669914681,-500.0,0.00024109,2]
[312153598,1705669914691,-717.41,0.00024109,2]
[312153599,1705669914702,-733.48,0.00024109,2]
[312153600,1705669914713,-500.0,0.00024109,2]
[312153601,1705669914724,-500.0,0.00024109,2]
[312153602,1705669914735,-567.28,0.00024109,2]
[312153603,1705669914745,-500.0,0.00024109,2]
[312153604,1705669914755,-544.36,0.00024109,2]
[312153605,1705669914765,-500.0,0.00024109,2]
[312153606,1705669914775,-500.0,0.00024109,2]
[312153607,1705669914786,-500.0,0.00024109,2]
[312153608,1705669914797,-500.0,0.00024109,2]
[312153609,1705669914807,-508.81,0.00024109,2]
[312153610,1705669914818,-500.0,0.00024109,2]
[312153611,1705669914828,-500.0,0.00024109,2]
[312153612,1705669914839,-500.0,0.00024109,2]
[312153613,1705669914849,-685.86,0.00024109,2]
[312153614,1705669914859,-500.0,0.00024109,2]
[312153615,1705669914869,-864.15,0.00024109,2]
[312153616,1705669914880,-500.0,0.00024109,2]
[312153617,1705669914891,-502.08,0.00024109,2]
[312153618,1705669914901,-504.94,0.00024109,2]
[312153619,1705669914911,-854.99,0.00024109,2]
[312153620,1705669914922,-606.04,0.00024109,2]
[312153621,1705669914932,-571.27,0.00024109,2]
[312153622,1705669914943,-851.01,0.00024109,2]
[312153623,1705669914953,-500.0,0.00024109,2]
[312153624,1705669914963,-1336.55,0.00024109,2]
[312153625,1705669914986,-546.09061221,0.00024109,2]
[312153626,1705669914997,-500.0,0.00024109,2]
[312153627,1705669915007,-953.61,0.00024109,2]
[312153628,1705669915017,-536.63,0.00024109,2]
[312153629,1705669915028,-500.0,0.00024109,2]
[312153630,1705669915038,-662.32,0.00024109,2]
[312153631,1705669915048,-770.79,0.00024109,2]
[312153632,1705669915329,-811.51,0.00024109,2]
[312153633,1705669915388,-500.0,0.00024109,2]
[312153634,1705669915399,-500.0,0.00024109,2]
[312153635,1705669915409,-845.2,0.00024109,2]
[312153636,1705669915419,-500.0,0.00024109,2]
[312153637,1705669915429,-788.16,0.00024109,2]
[312153638,1705669915439,-653.02,0.00024109,2]
[312153639,1705669915449,-1258.44,0.00024109,2]
[312153640,1705669915459,-225.37738224,0.00024109,2]
[312153641,1705669915469,-500.0,0.00024109,2]
[312153642,1705669915479,-500.0,0.00024109,2]
[312153643,1705669915489,-500.0,0.00024109,2]
[312153644,1705669915499,-500.0,0.00024109,2]
[312153645,1705669915511,-640.03,0.00024109,2]
[312153646,1705669915521,-769.35,0.00024109,2]
[312153647,1705669915532,-570.39,0.00024109,2]
[312153648,1705669915542,-500.0,0.00024109,2]
[312153649,1705669915553,-723.58,0.00024109,2]
[312153650,1705669915563,-1088.57,0.00024109,2]
[312153651,1705669915573,-1400.81,0.00024109,2]
[312153652,1705669915583,-500.0,0.00024109,2]
[312153653,1705669915594,-613.93,0.00024109,2]
[312153654,1705669915604,-500.0,0.00024109,2]
[312153655,1705669915614,-749.16,0.00024109,2]
[312153656,1705669915624,-739.73,0.00024109,2]
[312153657,1705669915634,-500.0,0.00024109,2]
[312153658,1705669915643,-500.0,0.00024109,2]
[312153659,1705669915653,-1591.86,0.00024109,2]
[312153660,1705669915662,-500.0,0.00024109,2]
[312153661,1705669915671,-520.91,0.00024109,2]
[312153662,1705669915681,-500.0,0.00024109,2]
[312153663,1705669915691,-500.0,0.00024109,2]
[312153664,1705669915702,-556.82,0.00024109,2]
[312153665,1705669915712,-500.0,0.00024109,2]
[312153666,1705669915722,-500.0,0.00024109,2]
[312153667,1705669915732,-657.02,0.00024109,2]
[312153668,1705669915742,-903.89,0.00024109,2]
[312153669,1705669915753,-1000.86,0.00024109,2]
[312153670,1705669915764,-619.43,0.00024109,2]
[312153671,1705669915774,-759.91,0.00024109,2]
[312153672,1705669915783,-500.0,0.00024109,2]
[312153673,1705669915794,-549.59,0.00024109,2]
[312153674,1705669915804,-754.71,0.00024109,2]
[312153675,1705669915814,-500.0,0.00024109,2]
[312153676,1705669915824,-500.0,0.00024109,7]
[312153677,1705669915834,-1295.82,0.00024109,2]
[312153678,1705669915844,-500.0,0.00024109,2]
[312153679,1705669915853,-536.32,0.00024109,2]
[312153680,1705669915863,-697.99,0.00024109,2]
[312153681,1705669915872,-637.25,0.00024109,2]
[312153682,1705669915883,-585.76,0.00024109,2]
[312153683,1705669915893,-971.36,0.00024109,2]
[312153684,1705669915902,-500.0,0.00024109,2]
[312153685,1705669915911,-508.57,0.00024109,2]
[312153686,1705669915921,-500.0,0.00024109,2]
[312153687,1705669915931,-516.49,0.00024109,2]
[312153688,1705669915940,-674.4,0.00024109,2]
[312153689,1705669915950,-1174.25,0.00024109,2]
[312153690,1705669915959,-500.0,0.00024109,2]
[312153691,1705669915969,-2577.21,0.00024109,2]
[312153692,1705669915978,-500.0,0.00024109,2]
[312153693,1705669915987,-551.89,0.00024109,2]
[312153694,1705669915997,-1004.34,0.00024109,2]
[312153695,1705669916007,-500.0,0.00024109,2]
[312153696,1705669916017,-595.37,0.00024109,2]
[312153697,1705669916026,-500.0,0.00024109,2]
[312153698,1705669916036,-500.0,0.00024109,2]
[312153699,1705669916045,-975.94,0.00024109,2]
[312153700,1705669916054,-1384.81,0.00024109,2]
[312153701,1705669916064,-500.0,0.00024109,2]
[312153702,1705669916075,-300.0,0.00024109,2]
[312153703,1705669916085,-2155.6,0.00024109,2]
[312153704,1705669916095,-500.0,0.00024109,2]
[312153705,1705669916104,-607.66,0.00024109,2]
[312153706,1705669916114,-500.0,0.00024109,2]
[312153707,1705669916124,-500.0,0.00024109,2]
[312153708,1705669916134,-993.96,0.00024109,2]
[312153709,1705669916144,-500.0,0.00024109,2]
[312153710,1705669916154,-500.0,0.00024109,2]
[312153711,1705669916163,-1491.73,0.00024109,2]
[312153712,1705669916173,-500.0,0.00024109,2]
[312153713,1705669916183,-500.0,0.00024109,2]
[312153714,1705669916193,-2597.14,0.00024109,2]
[312153715,1705669916203,-884.11,0.00024109,2]
[312153716,1705669916213,-500.0,0.00024109,2]
[312153717,1705669916223,-702.17,0.00024109,2]
[312153718,1705669916233,-500.0,0.00024109,2]
[312153719,1705669916242,-1278.53,0.00024109,2]
[312153720,1705669916252,-509.99,0.00024109,2]
[312153721,1705669916263,-1304.44,0.00024109,2]
[312153722,1705669916272,-644.49,0.00024109,2]
[312153723,1705669916283,-4136.35,0.00024109,2]
[312153724,1705669916293,-756.21,0.00024109,2]
[312153725,1705669916303,-500.0,0.00024109,2]
[312153726,1705669916313,-1691.78,0.00024109,2]
[312153727,1705669916325,-957.56,0.00024109,2]
[312153728,1705669916335,-500.0,0.00024109,2]
[312153729,1705669916346,-500.0,0.00024109,2]
[312153730,1705669916356,-500.0,0.00024109,2]
[312153731,1705669916367,-500.0,0.00024109,2]
[312153732,1705669916377,-561.8,0.00024109,2]
[312153733,1705669916390,-1210.49,0.00024109,2]
[312153734,1705669916402,-557.2,0.00024109,2]
[312153735,1705669916413,-500.0,0.00024109,2]
[312153736,1705669916424,-1263.43,0.00024109,2]
[312153737,1705669916435,-970.19,0.00024109,2]
[312153738,1705669916445,-3690.4,0.00024109,2]
[312153739,1705669916456,-500.0,0.00024109,2]
[312153740,1705669916467,-790.63,0.00024109,2]
[312153741,1705669916478,-500.0,0.00024109,2]
[312153742,1705669916488,-500.0,0.00024109,2]
[312153743,1705669916498,-702.42,0.00024109,2]
[312153744,1705669916508,-3924.47,0.00024109,2]
[312153745,1705669916518,-500.0,0.00024109,2]
[312153746,1705669916530,-973.67,0.00024109,2]
[312153747,1705669916541,-598.21,0.00024109,2]
[312153748,1705669916552,-1520.21,0.00024109,2]
[312153749,1705669916562,-500.0,0.00024109,2]
[312153750,1705669916573,-562.92,0.00024109,2]
[312153751,1705669916584,-500.0,0.00024109,2]
[312153752,1705669916594,-1299.47,0.00024109,2]
[312153753,1705669916605,-4002.65,0.00024109,2]
[312153754,1705669916615,-1988.16,0.00024109,5]
[312153755,1705669916626,-687.96,0.00024109,2]
[312153756,1705669916639,-821.93,0.00024109,2]
[312153757,1705669916649,-1689.55,0.00024109,2]
[312153758,1705669916660,-500.0,0.00024109,2]
[312153759,1705669916670,-2788.01,0.00024109,2]
[312153760,1705669916680,-574.45,0.00024109,2]
[312153761,1705669916691,-621.19,0.00024109,2]
[312153762,1705669916701,-530.48764971,0.00024109,2]
[312153763,1705669916711,-1406.79,0.00024109,2]
[312153764,1705669916722,-1676.68,0.00024109,2]
[312153765,1705669916732,-582.12913984,0.00024109,2]
[312153766,1705669916743,-722.53,0.00024109,2]
[312153767,1705669916754,-528.2,0.00024109,2]
[312153768,1705669916764,-1258.05,0.00024109,2]
[312153769,1705669916775,-500.0,0.00024109,2]
[312153770,1705669916786,-536.55,0.00024109,2]
[312153771,1705669916796,-591.46,0.00024109,2]
[312153772,1705669916809,-1526.19,0.00024109,2]
[312153773,1705669916819,-1185.94,0.00024109,2]
[312153774,1705669916830,-3581.47,0.00024109,2]
[312153775,1705669916842,-12146.1,0.00024109,2]
[312153776,1705669916852,-500.0,0.00024109,2]
[312153777,1705669916863,-2612.2,0.00024109,2]
[312153778,1705669916874,-1237.18,0.00024109,2]
[312153779,1705669916887,-1056.03,0.00024109,2]
[312153780,1705669916898,-858.97,0.00024109,2]
[312153781,1705669916908,-656.1,0.00024109,2]
[312153782,1705669916918,-2469.05,0.00024109,2]
[312153783,1705669916927,-9252.78,0.00024109,2]
[312153784,1705669916937,-602.84,0.00024109,2]
[312153785,1705669916947,-500.0,0.00024109,2]
[312153786,1705669916956,-15248.18,0.00024109,2]
[312153787,1705669916966,-2574.37,0.00024109,2]
[312153788,1705669916975,-767.02,0.00024109,2]
[312153789,1705669916985,-543.58,0.00024109,2]
[312153790,1705669916995,-1439.62,0.00024109,2]
[312153791,1705669917005,-1848.98,0.00024109,2]
[312153792,1705669917015,-577.79,0.00024109,2]
[312153793,1705669917025,-1228.0,0.00024109,2]
[312153794,1705669917035,-8551.06,0.00024109,2]
[312153795,1705669917045,-2267.31,0.00024109,2]
[312153796,1705669917054,-335.59,0.00024109,2]
[312153797,1705669917064,-574.86,0.00024109,2]
[312153798,1705669917074,-3257.42,0.00024109,2]
[312153799,1705669917083,-500.0,0.00024109,2]
[312153800,1705669917094,-894.19,0.00024109,2]
[312153801,1705669917103,-585.55,0.00024109,2]
[312153802,1705669917113,-5684.2,0.00024109,2]
[312153803,1705669917123,-2231.87,0.00024109,2]
[312153804,1705669917135,-1414.02,0.00024109,2]
[312153805,1705669917145,-939.86,0.00024109,2]
[312153806,1705669917155,-500.0,0.00024109,2]
[312153807,1705669917165,-580.2,0.00024109,2]
[312153808,1705669917175,-2102.76,0.00024109,2]
[312153809,1705669917186,-1984.44,0.00024109,2]
[312153810,1705669917195,-500.0,0.00024109,2]
[312153811,1705669917206,-500.0,0.00024109,2]
[312153812,1705669917215,-3439.18,0.00024109,2]
[312153813,1705669917225,-2207.47,0.00024109,2]
[312153814,1705669917235,-500.0,0.00024109,2]
[312153815,1705669917244,-1931.43,0.00024109,2]
[312153816,1705669917254,-639.82,0.00024109,2]
[312153817,1705669917263,-4658.46,0.00024109,2]
[312153818,1705669917273,-500.0,0.00024109,2]
[312153819,1705669917283,-1100.23,0.00024109,2]
[312153820,1705669917293,-644.68,0.00024109,2]
[312153821,1705669917302,-520.60373498,0.00024109,2]
[312153822,1705669917312,-500.0,0.00024109,2]
[312153823,1705669917322,-500.0,0.00024109,2]
[312153824,1705669917331,-500.0,0.00024109,2]
[312153825,1705669917341,-759.77,0.00024109,2]
[312153826,1705669917351,-1956.81,0.00024109,2]
[312153827,1705669917360,-986.14,0.00024109,2]
[312153828,1705669917371,-500.0,0.00024109,2]
[312153829,1705669917381,-534.94,0.00024109,2]
[312153830,1705669917392,-686.98,0.00024109,2]
[312153831,1705669917403,-549.98,0.00024109,2]
[312153832,1705669917413,-916.9,0.00024109,2]
[312153833,1705669917423,-869.67,0.00024109,2]
[312153834,1705669917433,-7071.93,0.00024109,2]
[312153835,1705669917444,-1215.68,0.00024109,2]
[312153836,1705669917454,-2963.64,0.00024109,2]
[312153837,1705669917464,-1525.76,0.00024109,2]
[312153838,1705669917474,-131.09605979,0.00024109,2]
[312153839,1705669918039,-490.26394021,0.00024109,2]
[312153840,1705669918050,-500.0,0.00024109,2]
[312153841,1705669918059,-2140.94,0.00024109,2]
[312153842,1705669918070,-710.71,0.00024109,2]
[312153843,1705669918079,-842.67,0.00024109,2]
[312153844,1705669918089,-549.3,0.00024109,2]
[312153845,1705669918099,-2991.95009815,0.00024109,2]
[312153846,1705669918111,-1454.00990185,0.00024109,2]
[312153847,1705669918121,-548.77695815,0.00024109,2]
[312153848,1705669918133,-647.02828518,0.00024109,2]
[312153849,1705669919086,-871.26,0.00021917,5]
[312153850,1705669919096,-500.0,0.00021917,2]
[312153851,1705669919106,-2765.42,0.00021917,2]
[312153852,1705669919116,-1590.73,0.00021918,3]
[312153853,1705669919125,-871.26,0.00022191,5]
[312153854,1705669919137,-253.97923127,0.00022191,2]
[312153855,1705669919237,-2409.35153101,0.00022191,2]
[312153856,1705669919330,-102.08923772,0.00022191,2]
[312153857,1705669919341,-871.26,0.00022465,5]
[312153858,1705669919351,-1185.35635318,0.00022465,2]
[312153859,1705669919364,-631.46799349,0.00022465,2]
[312153860,1705669919398,-500.0,0.00021917,2]
[312153861,1705669919409,-948.59565333,0.00022465,2]
[312153862,1705669919419,-2765.42,0.00022739,2]
[312153863,1705669919429,-871.26,0.00022739,5]
[312153864,1705669919439,-151.0,0.00023013,7]
[312153865,1705669919449,-2765.42,0.00023013,2]
[312153866,1705669919459,-871.26,0.00023013,5]
[312153867,1705669919469,-500.0,0.00023287,2]
[312153868,1705669919479,-2765.42,0.00023287,2]
[312153869,1705669919489,-871.26,0.00023287,5]
[312153870,1705669919498,-151.0,0.00023288,7]
[312153871,1705669919509,-500.0,0.00023561,2]
[312153872,1705669919519,-2765.42,0.00023561,2]
[312153873,1705669919529,-871.26,0.00023561,5]
[312153874,1705669919540,-335.48720183,0.00023835,2]
[312153875,1705669919550,-2765.42,0.00023835,2]
[312153876,1705669919561,-871.26,0.00023835,5]
[312153877,1705669919572,-112.55764484,0.00023835,7]
[312153878,1705669919594,-38.44235516,0.00023835,7]
[312153879,1705669919604,-559.66846129,0.00024109,2]
[312153880,1705669920028,-250.0,0.00021917,2]
[312153881,1705669920038,-128.80377185,0.00024109,2]
[312153882,1705669920101,-1368.36252353,0.00024109,2]
[312153883,1705669920111,-11.40187733,0.00024109,2]
[312153884,1705669920130,-9420.62812267,0.00024109,2]
[312153885,1705669920140,-1494.52,0.00024109,2]
[312153886,1705669920150,-4394.60871885,0.00024109,2]
[312153887,1705669920162,-48.23128115,0.00024109,2]
[312153888,1705669920172,-557.75540704,0.00024109,2]
[312153889,1705669920187,-652.4530504,0.00024109,2]
[312153890,1705669920198,-1095.06154256,0.00024109,2]
[312153891,1705669920208,-1994.22,0.00024109,2]
[312153892,1705669920218,-785.42,0.00024109,2]
[312153893,1705669920229,-544.14,0.00024109,2]
[312153894,1705669920239,-1593.60966322,0.00024109,2]
[312153895,1705669920251,-867.37048313,0.00024109,2]
[312153896,1705669920264,-12870.09985365,0.00024109,2]
[312153897,1705669920275,-37740.3,0.00024109,2]
[312153898,1705669920285,-575.23,0.00024109,2]
[312153899,1705669920295,-1054.33411589,0.00024109,2]
[312153900,1705669921239,-336.28,0.0002121,2]
[312153901,1705669921251,-336.28,0.00021344,2]
[312153902,1705669921262,-336.28,0.00021478,2]
[312153903,1705669921272,-336.28,0.00021612,2]
[312153904,1705669921282,-336.28,0.00021746,2]
[312153905,1705669921292,-2396.25102223,0.00021817,2]
[312153906,1705669921303,-500.0,0.00021917,2]
[312153907,1705669921313,-500.0,0.00021917,2]
[312153908,1705669921323,-500.0,0.00021917,2]
[312153909,1705669921334,-493.98,0.00022191,2]
[312153910,1705669921344,-500.0,0.00022191,2]
[312153911,1705669921354,-500.0,0.00022465,2]
[312153912,1705669921365,-500.0,0.00022739,2]
[312153913,1705669921377,-2186.12588411,0.00024109,2]
[312153914,1705669921389,-500.0,0.00024109,2]
[312153915,1705669921399,-664.75,0.00024109,2]
[312153916,1705669921411,-500.0,0.00024109,2]
[312153917,1705669921422,-500.0,0.00024109,2]
[312153918,1705669921433,-500.0,0.00024109,2]
[312153919,1705669921444,-500.0,0.00024109,2]
[312153920,1705669921455,-500.0,0.00024109,2]
[312153921,1705669921466,-1196.75,0.00024109,2]
[312153922,1705669921478,-1846.5,0.00024109,2]
[312153923,1705669921489,-500.0,0.00024109,2]
[312153924,1705669921501,-665.6,0.00024109,2]
[312153925,1705669921511,-2233.52,0.00024109,2]
[312153926,1705669921522,-538.09,0.00024109,2]
[312153927,1705669921532,-2652.58,0.00024109,2]
[312153928,1705669921544,-500.0,0.00024109,2]
[312153929,1705669921554,-1124.95,0.00024109,2]
[312153930,1705669921570,-808.35,0.00024109,2]
[312153931,1705669921582,-573.95,0.00024109,2]
[312153932,1705669921594,-1635.99,0.00024109,2]
[312153933,1705669921605,-3944.13,0.00024109,2]
[312153934,1705669921617,-750.32,0.00024109,2]
[312153935,1705669921628,-4547.59,0.00024109,2]
[312153936,1705669921640,-1281.81,0.00024109,2]
[312153937,1705669921652,-500.0,0.00024109,2]
[312153938,1705669921663,-8425.91,0.00024109,2]
[312153939,1705669921675,-500.0,0.00024109,2]
[312153940,1705669921686,-754.61,0.00024109,2]
[312153941,1705669921698,-1705.42,0.00024109,2]
[312153942,1705669921709,-591.74,0.00024109,2]
[312153943,1705669921719,-780.91,0.00024109,2]
[312153944,1705669921731,-574.32,0.00024109,2]
[312153945,1705669921742,-1313.23,0.00024109,2]
[312153946,1705669921753,-500.0,0.00024109,2]
[312153947,1705669921764,-2028.69,0.00024109,2]
[312153948,1705669921775,-506.59,0.00024109,2]
[312153949,1705669921787,-500.0,0.00024109,2]
[312153950,1705669921798,-633.91,0.00024109,2]
[312153951,1705669921815,-500.0,0.00024109,2]
[312153952,1705669921826,-9076.22,0.00024109,2]
[312153953,1705669921837,-924.14,0.00024109,2]
[312153954,1705669921848,-526.59,0.00024109,2]
[312153955,1705669921859,-2029.72,0.00024109,2]
[312153956,1705669921870,-826.71,0.00024109,2]
[312153957,1705669921881,-500.0,0.00024109,2]
[312153958,1705669921894,-1960.9,0.00024109,2]
[312153959,1705669921906,-981.27,0.00024109,2]
[312153960,1705669921917,-500.0,0.00024109,2]
[312153961,1705669921930,-4783.55,0.00024109,2]
[312153962,1705669921942,-835.31,0.00024109,2]
[312153963,1705669921953,-5207.41,0.00024109,2]
[312153964,1705669921964,-1577.31,0.00024109,2]
[312153965,1705669921975,-531.55081795,0.00024109,2]
[312153966,1705669921986,-3855.72,0.00024109,2]
[312153967,1705669921997,-685.58,0.00024109,2]
[312153968,1705669922008,-1179.28,0.00024109,2]
[312153969,1705669922019,-813.09,0.00024109,2]
[312153970,1705669922029,-793.67,0.00024109,2]
[312153971,1705669922041,-583.17,0.00024109,2]
[312153972,1705669922052,-3177.97,0.00024109,2]
[312153973,1705669922066,-2276.82,0.00024109,2]
[312153974,1705669922077,-3710.39,0.00024109,2]
[312153975,1705669922088,-500.0,0.00024109,2]
[312153976,1705669922100,-500.0,0.00024109,2]
[312153977,1705669922111,-660.03,0.00024109,2]
[312153978,1705669922122,-550.62,0.00024109,2]
[312153979,1705669922134,-500.0,0.00024109,2]
[312153980,1705669922144,-2628.92,0.00024109,2]
[312153981,1705669922155,-1034.13,0.00024109,2]
[312153982,1705669922166,-638.69,0.00024109,2]
[312153983,1705669922178,-1021.85394102,0.00024109,2]
[312153984,1705669922195,-548.68195015,0.00024109,2]
[312153985,1705669922235,-430.34410883,0.00024109,2]
[312153986,1705669922247,-5604.02646027,0.00024109,2]
[312153987,1705669922402,-336.28,0.0002188,2]
[312153988,1705669922414,-1746.43,0.00021917,2]
[312153989,1705669922425,-500.0,0.00023013,2]
[312153990,1705669922436,-1002.01222914,0.00024109,2]
[312153991,1705669922450,-2248.46080941,0.00024109,2]
[312153992,1705669922464,-3191.45056,0.00024109,2]
[312153993,1705669922479,-7323.36994118,0.00024109,2]
[312153994,1705669922491,-1229.33445882,0.00024109,2]
[312153995,1705669922505,-547.62,0.00024109,2]
[312153996,1705669922519,-371.65554118,0.00024109,2]
[312153997,1705669922531,-502.04837178,0.00024109,2]
[312153998,1705669922543,-21.66108704,0.00024109,2]
[312154002,1705670068326,290.54,0.00018707,2]
[312154005,1705670287367,-204.0,0.00019222,2]
[312154006,1705670433412,-349.0006418,0.00019503,2]
[312154009,1705670689761,276.01,0.00018287,2]
[312154047,1705671031726,-500.29942238,0.00019503,2]
[312154048,1705671031736,-559.0494248,0.00019504,2]
[312154049,1705671031746,-253.31895104,0.00019724,2]
[312154050,1705671031757,-166.51,0.00020098,2]
[312154051,1705671031767,-153.3136744,0.00020113,2]
[312154052,1705671031778,-200.0,0.00020116,2]
[312154053,1705671031788,-163.72,0.0002016,2]
[312154054,1705671031798,-101.2038689,0.0002017,2]
[312154055,1705671031815,-198.7961311,0.0002017,2]
[312154056,1705671031826,-1274.1738689,0.00020171,2]
[312154057,1705671031864,-2345.3935,0.00020171,2]
[312154058,1705671031877,-656.50797019,0.00020171,2]
[312154059,1705671031890,-4454.38728676,0.00020171,2]
[312154060,1705671031918,-1272.92017302,0.00020171,2]
[312154061,1705671031940,-4793.06373324,0.00020171,2]
[312154062,1705671031953,-1320.04532024,0.00020171,2]
[312154063,1705671031971,-7763.50814765,0.00020171,2]
[312154064,1705671031982,-1603.92,0.00020178,2]
[312154065,1705671031993,-710.29,0.00020183,2]
[312154066,1705671032003,-499.99,0.00020183,2]
[312154067,1705671032013,-2481.16,0.00020213,2]